Cogmind - Beta 15 @@@ ROGUE MODE // 2025.05.26 @ 16:00:46 Player: Carpathian Result: Destroyed by G-47 Trooper with Particle Gun Performance ------------- Evolutions (2) 1000 Regions Visited (3) 600 Robots Destroyed (61) 305 Value Destroyed (1494) 1494 Prototype IDs (8) 160 Alien Tech Used (0) 0 Bonus (0) 0 TOTAL SCORE: 3559 Bonus ------- None Cogmind --------- Core Integrity 0/550 Matter 88/300 Energy 88/100 System Corruption 1% Temperature Critical (528) Movement Walking (200) Ox1 Location -8/Materials Parts ------- > --- POWER (1) -------- (None) > --- PROPULSION (2) --- Aluminum Leg Titanium Leg > --- UTILITY (6) ------ Large Storage Unit Visual Processing Unit Improved Signal Interpreter Targeting Computer > --- WEAPON (2) ------- Heavy Particle Gun Heavy Flail > --- INVENTORY (15) --- Improved Heat Sink Insulated Plating Improved Datajack Peak State ------------ > --- POWER ------------ Light Nuclear Core > --- PROPULSION ------- Aluminum Leg Titanium Leg > --- UTILITY ---------- Large Storage Unit Visual Processing Unit Improved Signal Interpreter Targeting Computer Hardened Heavy Armor Plating > --- WEAPON ----------- Heavy Particle Gun Heavy Assault Rifle > --- INVENTORY -------- Aluminum Leg Improved Heat Sink Insulated Plating Improved Datajack Heavy Flail [Rating: 29] Favorites ----------- Power Heavy Ion Engine Engine Heavy Ion Engine Power Core Light Nuclear Core Propulsion Light Treads Treads Light Treads Leg Aluminum Leg Utility Targeting Computer Device ECM Suite Storage Small Storage Unit Processor Targeting Computer Protection Medium Armor Plating Weapon Light Assault Rifle Energy Gun Heavy EM Shotgun Energy Cannon Light EM Pulse Cannon Ballistic Gun Light Assault Rifle Ballistic Cannon Assault Cannon Launcher Advanced EMP Blaster Impact Weapon Heavy Flail Build | -11 -10 -9 -8 ------- Run | Yrd Mat Mat Mat Slots Evolved 4 | . . 2 2 Power . | . . . . Propulsion . | . . . . Utility 4 | . . 2 2 Weapon . | . . . . Parts Attached 46 | 6 3 14 23 Power 6 | 1 1 2 2 Engine 4 | 1 1 2 . Core 2 | . . . 2 Reactor . | . . . . Propulsion 10 | 2 1 2 5 Treads 6 | 2 1 1 2 Leg 4 | . . 1 3 Wheel . | . . . . Hover . | . . . . Flight . | . . . . Utility 12 | 1 1 4 6 Device 1 | . . 1 . Storage 4 | 1 . . 3 Processor 4 | . 1 2 1 Hackware . | . . . . Protection 3 | . . 1 2 Artifact . | . . . . Weapon 18 | 2 . 6 10 Energy Gun 5 | . . 3 2 Energy Cannon 2 | . . 1 1 Ballistic Gun 6 | 2 . 2 2 Ballistic Cannon 1 | . . . 1 Launcher 3 | . . . 3 Special Weapon . | . . . . Impact Weapon 1 | . . . 1 Slashing Weapon . | . . . . Piercing Weapon . | . . . . Special Melee Weapon . | . . . . Unidentified Prototypes 6 | . . 3 3 Parts Lost 13 | . 1 2 10 Power 3 | . 1 . 2 Propulsion 4 | . . 1 3 Utility 2 | . . . 2 Weapon 4 | . . 1 3 Highest Loss Streak 5 | . 1 2 5 To Critical Strikes . | . . . . Average Backups 3 | . 1 3 4 Power . | . . . . Propulsion . | . . . . Utility . | . . . 1 Weapon 2 | . . 2 2 Tool/Special . | . . . . Unused Backups 7 | . . 1 6 Power 1 | . . . 1 Propulsion 1 | . . . 1 Utility 2 | . . . 2 Weapon 2 | . . 1 1 Tool/Special 1 | . . . 1 Average Slot Usage (%) 87 | . 96 94 80 Engine 5 | . 11 11 1 Core 3 | . . . 7 Treads 14 | . 28 21 6 Leg 4 | . . . 8 Device 1 | . . 5 . Storage 10 | . 14 11 9 Processor 21 | . 13 22 23 Protection 4 | . . . 8 Energy Gun 8 | . . 9 10 Ballistic Gun 10 | . 28 11 4 Launcher 1 | . . . 2 Peak Build Rating 29 | 6 7 19 29 Average Rating 17 | 4 6 13 22 On Entrance 7 | . 6 7 18 Naked Turns . | . . . . Heaviest Build 52 | 11 11 27 52 Greatest Support 40 | 40 40 40 40 Greatest Overweight (x) 8 | . . . 8 Average Overweight (x) . | . . . 1 Largest Inventory Capacity 15 | 8 8 8 15 Average Capacity 10 | 6 8 8 12 Most Carried 10 | 4 2 6 10 Average Carried 3 | . 1 3 5 Final Capacity 15 | 8 8 8 15 Final Carried 4 | 1 1 4 3 Class Distribution -------------------- 76% | Mutant 23% | Scavenger-Mutant Dominant Class ---------------- Mutant | -10/Materials Mutant | -9/Materials Mutant | -8/Materials Resources | -11 -10 -9 -8 ----------- Run | Yrd Mat Mat Mat Matter Collected 1207 | 228 183 242 554 Remotely . | . . . . Salvage Created 2299 | . 229 771 1299 Parts 138 | . 23 49 66 Haulers Intercepted 6 | . . 1 5 Recyclers Shooed 4 | . 4 . . Parts Field Recycled . | . . . . Retrieved Matter . | . . . . Parts Self-Destructed . | . . . . Prevented . | . . . . Kills | -11 -10 -9 -8 ------- Run | Yrd Mat Mat Mat Combat Hostiles Destroyed 43 | . 7 17 19 Guns 35 | . 7 14 14 Cannons 2 | . . 2 . AOE 6 | . . 1 5 Classes Destroyed 11 | . 5 3 3 Worker 4 | . 1 2 1 Builder 3 | . 1 1 1 Hauler 6 | . . 1 5 Recycler 4 | . 1 2 1 Watcher 1 | . . 1 . Swarmer 15 | . 6 9 . Grunt 17 | . 1 7 9 Sentry 7 | . . 1 6 Specialist 2 | . . . 2 Hunter 1 | . . . 1 Heavy 1 | . . . 1 Best Kill Streak 10 | . 3 10 4 Combat Bots Only 8 | . 3 8 3 Max Kills in Single Turn 2 | . 1 2 1 Gunslinging . | . . . . Exploded 1 | . . 1 1 Melee . | . . . . Uniques/NPCs Destroyed . | . . . . Combat | -11 -10 -9 -8 -------- Run | Yrd Mat Mat Mat Hostile Shots Fired 356 | . 41 108 207 Missed 101 | . 7 30 64 Hits 255 | . 34 78 143 Projectile 255 | . 34 78 143 Critical Strikes 7 | . . 1 6 Damage Taken 3791 | . 287 802 2702 Core 760 | . 28 167 565 Absorbed by Shields . | . . . . Core Remaining (%) 82 | 100 88 58 . Volleys Fired 165 | . 37 51 77 Largest 2 | . 2 2 2 Hottest 98 | . 40 95 98 Shots Fired 324 | . 74 100 150 Gun 285 | . 74 90 121 Cannon 20 | . . 10 10 Launcher 19 | . . . 19 Special . | . . . . Kinetic 183 | . 74 62 47 Thermal 53 | . . . 53 Explosive 11 | . . . 11 Electromagnetic 77 | . . 38 39 Robot Hit Streak 8 | . 7 8 8 Robot Miss Streak 5 | . 3 3 5 Penetration Max . | . . . . Secondary Targets 7 | . 1 4 2 Max Gunslinging Chain 1 | . 1 1 1 Shots Hit Robots 215 | . 44 68 103 Core Hits 105 | . 17 38 50 Critical Kills . | . . . . Critical Parts Destroyed 1 | . . 1 . Critical Strikes 2 | . . 1 1 Destroy 1 | . . 1 . Blast 1 | . . . 1 Melee Attacks . | . . . . Impact . | . . . . Slashing . | . . . . Piercing . | . . . . Sneak Attacks . | . . . . Combat Hostiles . | . . . . Follow-up Attacks . | . . . . Damage Inflicted 4368 | . 509 1170 2689 Guns 2826 | . 509 839 1478 Cannons 382 | . . 166 216 Explosions 1160 | . . 165 995 Melee . | . . . . Ramming . | . . . . Kinetic 1411 | . 509 423 479 Thermal 1011 | . . 165 846 Explosive 440 | . . . 440 Electromagnetic 1506 | . . 582 924 Impact . | . . . . Slashing . | . . . . Piercing . | . . . . Highest Corruption 1 | . . . 1 Average Corruption 1 | . . . 1 Corruption Purged . | . . . . Corruption Blocked . | . . . . Effects 16 | . . . 16 Message Errors 7 | . . . 7 Matter Fused 2 | . . . 2 Heat Flow Errors 1 | . . . 1 Energy Discharges 2 | . . . 2 Data Loss (minor) 1 | . . . 1 Data Loss (major) 1 | . . . 1 Misfires 1 | . . . 1 Weapon Failures 1 | . . . 1 Overload Shots . | . . . . Overflow Damage 34 | . . 27 7 Projectiles 4 | . . . 4 Explosions 30 | . . 27 3 Melee . | . . . . Knockbacks 2 | . . . 2 Impact . | . . . . Kinetic 2 | . . . 2 Secondary . | . . . . Self-Inflicted Damage 157 | . . 12 145 Shots 6 | . . 1 5 Rammed . | . . . . Targets Rammed . | . . . . Kicked . | . . . . Crushed . | . . . . Highest Temperature 588 | . 6 208 588 Average Temperature 134 | . 3 71 155 Received Heat Transfer 1209 | . 12 207 990 Effects 11 | . . . 11 Energy Bleed 1 | . . . 1 Interference 3 | . . . 3 Matter Decay 5 | . . . 5 Short Circuit 1 | . . . 1 Damage (core) 1 | . . . 1 Siege Activations . | . . . . Martial Activations . | . . . . Shielding Activations . | . . . . Robots Disrupted . | . . . . Combat Hostiles . | . . . . Robots Corrupted 1 | . . . 1 Combat Hostiles . | . . . . Parts Fried 11 | . . 3 8 Impact Corruptions . | . . . . Robots Melted . | . . . . Combat Hostiles . | . . . . Parts Melted 1 | . . . 1 Heat Transferred 1743 | . . 250 1493 Parts Sabotaged . | . . . . Parts Stolen . | . . . . Parts Stripped . | . . . . Power Chain Reactions 10 | . . 4 6 Alert | -11 -10 -9 -8 ------- Run | Yrd Mat Mat Mat Maximum Alert Level 1 | . . . 1 Low Security (%) 90 | 100 100 100 81 Level 1 9 | . . . 18 Level 2 . | . . . . Level 3 . | . . . . Level 4 . | . . . . Level 5 . | . . . . High Security . | . . . . Max Security . | . . . . Peak Influence 245 | . 110 177 245 Initial 52 | . . . 52 Average 94 | . 41 74 124 Influence Increases 1432 | . 185 530 717 Destroy 0b10 Robot/C 860 | . 140 340 380 Destroy 0b10 Robot/NC 90 | . 15 35 40 Destroy Leader 224 | . 30 54 140 Successful Hack 11 | . . 7 4 Disable Machine 45 | . . . 45 Destroy Structure 127 | . . 19 108 Lose Combat Pursuer 75 | . . 75 . Influence Decreases 1246 | . 185 404 657 Entered New Map 74 | . . . 74 Time Decay 1052 | . 175 384 493 Lost Part 120 | . 10 20 90 Squads Dispatched 9 | . 1 3 5 Investigation 2 | . . 1 1 Extermination . | . . . . Reinforcement 7 | . 1 2 4 Assault . | . . . . Garrison . | . . . . Intercept . | . . . . Searches Triggered . | . . . . Construction Impeded . | . . . . Haulers Reinforced . | . . . . Active Scanning Responses . | . . . . Cargo Convoy Interrupts . | . . . . Stealth | -11 -10 -9 -8 --------- Run | Yrd Mat Mat Mat Distress Signals 6 | . 2 2 2 Communications Jammed . | . . . . Distress Signals . | . . . . Times Spotted 81 | . 13 33 35 Peak Tracking Total 6 | . 4 6 6 Tactical Retreats 5 | . . 5 . Traps | -11 -10 -9 -8 ------- Run | Yrd Mat Mat Mat Traps Triggered 3 | . . . 3 Indirectly . | . . . . Trap Hack Attempts . | . . . . Triggered . | . . . . Disarmed . | . . . . Reprogrammed 5 | . . 5 . Reused . | . . . . Traps Extracted . | . . . . Installed . | . . . . Triggered . | . . . . Machines | -11 -10 -9 -8 ---------- Run | Yrd Mat Mat Mat Machines Disabled 3 | . . . 3 Max in Single Turn 2 | . . . 2 Machines Repaired . | . . . . Machines Dismantled . | . . . . Machines Sabotaged . | . . . . Overloaded Fab Kills . | . . . . Hacking | -11 -10 -9 -8 --------- Run | Yrd Mat Mat Mat Machines Accessed 11 | . 1 5 5 Terminals 11 | . 1 5 5 Fabricators . | . . . . Repair Stations . | . . . . Recycling Units . | . . . . Scanalyzers . | . . . . Garrison Access . | . . . . Total Hacks 23 | . 1 12 10 Successful 16 | . 1 10 5 Failed 7 | . . 2 5 Catastrophic 2 | . . 1 1 Database Lockouts . | . . . . Manual . | . . . . Terminals 23 | . 1 12 10 Fabricators . | . . . . Repair Stations . | . . . . Recycling Units . | . . . . Scanalyzers . | . . . . Garrison Access . | . . . . Terminal Hacks 16 | . 1 10 5 Record 8 | . . 5 3 Prototype ID Bank 1 | . 1 . . Terminal Index 1 | . . 1 . Alert Level 1 | . . 1 . Locate Traps 1 | . . 1 . Reprogram Traps 1 | . . 1 . Patrol Status 1 | . . . 1 Assault Status 1 | . . 1 . Zone Layout 1 | . . . 1 Fabricator Hacks . | . . . . Repair Station Hacks . | . . . . Recycling Unit Hacks . | . . . . Scanalyzer . | . . . . Garrison Access Hacks . | . . . . Unauthorized Hacks . | . . . . Terminals . | . . . . Fabricators . | . . . . Repair Stations . | . . . . Recycling Units . | . . . . Scanalyzers . | . . . . Garrison Access . | . . . . Data Cores Recovered . | . . . . Used . | . . . . Hacking Detections 7 | . . 4 3 Full Trace Events 2 | . . 1 1 Feedback Events . | . . . . Feedback Blocked . | . . . . Robot Schematics Acquired . | . . . . Robots Built . | . . . . Authchips . | . . . . Time . | . . . . Total Robot Build Rating . | . . . . Part Schematics Acquired . | . . . . Parts Built . | . . . . Authchips . | . . . . Time . | . . . . Total Part Build Rating . | . . . . Parts Repaired . | . . . . Time . | . . . . Parts Recycled . | . . . . Recycled Matter . | . . . . Retrieved Matter . | . . . . Retrieved Components . | . . . . Parts Scanalyzed . | . . . . Part Schematics Acquired . | . . . . Parts Damaged . | . . . . Bothacking | -11 -10 -9 -8 ------------ Run | Yrd Mat Mat Mat Used RIF Installer . | . . . . Robots Hacked . | . . . . Non-combat . | . . . . Combat . | . . . . Robot Hacks Applied . | . . . . Relay Couplers Released . | . . . . Fabnet Peak Effective % . | . . . . Robots Rewired . | . . . . Allies Hacked . | . . . . Hacks Repelled . | . . . . Allies | -11 -10 -9 -8 -------- Run | Yrd Mat Mat Mat Total Allies . | . . . . Largest Group . | . . . . Highest-Rated Group . | . . . . Highest-Rated Ally . | . . . . Total Orders . | . . . . Ally Attacks . | . . . . Total Damage . | . . . . Kills . | . . . . Allies Corrupted . | . . . . Allies Melted . | . . . . Intel | -11 -10 -9 -8 ------- Run | Yrd Mat Mat Mat Active Infowar (turns) 3084 | . . 1171 1913 Optics 3084 | . . 1171 1913 ECM 560 | . . 560 . Robot Analysis Total . | . . . . Derelict Logs Recovered . | . . . . Drone Launches . | . . . . Drone Recoveries . | . . . . Exploration | -11 -10 -9 -8 ------------- Run | Yrd Mat Mat Mat Turns Passed 3689 | 66 493 1217 1913 Spaces Moved 1385 | 43 219 529 594 Core 30 | 13 . . 17 Treads 1138 | 30 219 529 360 Legs 217 | . . . 217 Wheels . | . . . . Hover . | . . . . Flight . | . . . . Fastest Speed 50 | 50 160 160 160 Average Speed 185 | 126 160 160 222 Slowest Speed 450 | 160 160 160 450 Overloaded Moves . | . . . . Propulsion Burnouts . | . . . . Robots Hopped . | . . . . Potential Cave-ins . | . . . . Cave-ins Triggered . | . . . . Exploration Rate (%) 33 | 4 35 42 53 Regions Visited 3 Branch Regions . Pre-discovered Areas . | . . . . Known Exits Taken . | . . . . Unknown Exits Taken 3 | 1 1 1 . Scrap Searched . | . . . . Spaces Dug . | . . . . Terrain Destroyed 154 | . . 18 136 Melee . | . . . . Projectile 2 | . . . 2 AOE 152 | . . 18 134 Terrain Rammed . | . . . . Walls Destroyed . | . . . . Machines Disabled . | . . . . Actions | -11 -10 -9 -8 --------- Run | Yrd Mat Mat Mat Total 2198 | 55 295 808 1040 Wait 521 | . 33 186 302 Move 1382 | 42 218 528 594 Hop . | . . . . Pick Up 53 | 7 3 18 25 Fast Attach . | . . . . Attach 22 | 6 2 5 9 Detach . | . . . . Swap 27 | . 1 10 16 Drop 28 | . 1 10 17 Fire 165 | . 37 51 77 Melee . | . . . . Ram . | . . . . Kick . | . . . . Crush . | . . . . Escape Stasis . | . . . . Rewire . | . . . . Trap . | . . . . Miscellaneous . | . . . . Route ------- -11/Scrapyard -10/Materials -9/Materials -8/Materials (discovered 1 exit: [*Fac]) History --------- Turn | Location | Event 11 | -11/Scrapyard | Discovered new exit (range 15) 67 | -11/Scrapyard | Entered Materials 310 | -10/Materials | Build established: Mutant 441 | -10/Materials | Discovered new exit (range 9) 560 | -10/Materials | Entered another Materials area 560 | -9/Materials | Evolved 2 slots: Utility x2 826 | -9/Materials | Destroyed 8 combat bots 1732 | -9/Materials | Discovered new exit (range 3) 1777 | -9/Materials | Entered another Materials area 1777 | -8/Materials | Evolved 2 slots: Utility x2 2642 | -8/Materials | Discovered new exit (range 14) 2678 | -8/Materials | Core integrity fell below 50% 2704 | -8/Materials | Lost 5 parts (1p2n1u1w) 3150 | -8/Materials | Build established: Scavenger-Mutant 3681 | -8/Materials | Core integrity fell below 20% 3690 | -8/Materials | Destroyed by G-47 Trooper with Particle Gun Last Messages --------------- 03655_ Critical hit (Burn: +37). 03663_ Lgt. Nuclear Core destroyed. 03671_ G-50 Soldier destroyed. 03671_ Switching to secondary target: G-47 Trooper. 03674_ Critical hit (Burn: +37). 03674_ G-47 Trooper destroyed. 03674_ Switching to secondary target: G-47 Trooper. 03680_ Aluminum Leg broken. 03680_ Overheating: Short circuit. 03680_ Hvy. Assault Rifle destroyed. 03681_ Overheating: Core damaged (-77). 03682_ Overheating: Matter decay (-51). 03683_ Overheating: Matter decay (-30). 03683_ R-06 Scavenger collects Carbon-fiber Leg. 03684_ Critical hit (Burn: +37). 03685_ Overheating: Matter decay (-34). 03686_ Overheating: Energy bleed (-9). 03686_ Hrd. Heavy Armor Plating destroyed. 03688_ Overheating: Matter decay (-33). 03690_ Overheating: Matter decay (-29). Map ----- +----------------------------------------------------+ | ???????????#""" #????????????????????????????? | | ???????????#"R ! #####????????????????????????? | | ???????????#""" # #????????????????????????? | | ???????????# + #????????????????????????? | | ??????????## """ # #????????????????????????? | | ??????????# """ !! # #????????????????????????? | | ??????????## """ % # #????????????????????????? | | ???????????# ! # #????????????????????????? | | ???????????########## ##???????? #?????????????? | | ???????????????????# ####### #?????????????? | | ???????????????????# ###???????????? | | ???????????????????# + ]????????? | | ??????????? ???????# ! ###???????????? | | ??????????? ??????# %[####### #?????????????? | | ???????????? ?????### ""#???????? #?????????????? | | ??????????###+#######" ###???#???????????????????? | | ??????????# a t #???? #???????????????????? | | ????????### #??? #???????????????????? | | ????? #?? ?????????????????????? | | ?????? ### ## #??????????????????????? | | ??????????# """ """ #??????????????????????? | | ??????????# """ """ ####??????????????????????? | | ??????????# """ """ ########??????????????????? | | ??????????# g% #??????????????????? | | ??????????# #[ #??????????????????? | | ??????????# ! #g@ #??????????????????? | | ??????????# g/%! #??????????????????? | | ??????????###T##"T"#####g= #??????????????????? | | ????????????####"""#???# #??????????????????? | | ???????????????#####???########??????????????????? | | ?????????????????????????????????????????????????? | | | | | | | | | | | | | | | | | | | | | | | | | | | | | | | | | | | | | | | +----------------------------------------------------+ Best States ------------- Heat Dissipation 31 Energy Generation 14 Energy Capacity 280 Matter Stores 300 Matter Capacity 300 Sight Range 18 Terrain Scan Density 10 ECM Strength 1 Armor Coverage 600 Evasion (%) 50 Targeting Accuracy 5 Recoil Reduction 2 Item Schematics ----------------- None Robot Schematics ------------------ None Fabricated ------------ Nothing Repaired ---------- Nothing Alien Tech Used ----------------- None Achievements -------------- None Challenges ------------ None Game ------ Seed CorruptionSurgeShielding Manual? 0 Play Time 00:23:39 Cumulative 28.1 hours Start 2025.05.26 @ 15:38:56 End 2025.05.26 @ 16:00:46 Sessions 1 Manual Loads 0 Difficulty Rogue Special Mode None Game No. 158 Rogue 158 Adventurer 0 Explorer 0 Win Type - Total 0 Types 0/0/0/0/0/0/0/0/0/0 Lore% 6 Gallery% 22 Achievement% 17 Wizard Run 0 Options --------- Layout 0 ASCII 0 Keyboard 0 Movement Mouse Keybinds 0 Fullscreen 2 Font 24/Cog Map View 76x50 Zoom Use 0% Tactical HUD 1 Map Filters NONE Filters NONE Steam 1 RUN: c71319c5-23b0-4d22-bbf1-72b318e9ee6c